{"text_format":"3","workbook":"xlsx","n_sheets":2,"sheets":["Camden All Categ ","Sheet3"],"read":"whole","date_system":"1900"}

{"sheet":"Camden All Categ ","index":0,"n_rows":51,"n_cols":6,"rows_kept":51,"merged":[[0,2,0,5],[2,2,2,5],[3,2,3,5],[25,2,25,5],[27,2,27,5],[40,2,40,5]]}
[null,null,"CAMDEN - ALL CATEGORY "]
["Item No.","Internal ","Description ","Unit of measure","Quantity","Number of machines/ operators"]
[null,null,"NB: Machine rates must incl. Site Establishment and De-Establishment excl. Operator "]
["A1",null,"Normal CSY"]
[1,"SDR","Smooth Drum Roller ","Hours ",{"$f":"21*31","v":651},4]
[2,"SDR Operator","SDR Operator","Hours ",{"$f":"(22*31)/4","v":170.5},16]
[3,"Dozer D8","Dozer D8","Hours ",{"$f":"21*31","v":651},2]
[4,"Dozer Operator","Dozer Operator","Hours ",{"$f":"(22*31)/4","v":170.5},8]
[5,"Dozer D6","Dozer D6","Hours ",{"$f":"21*31","v":651},2]
[6,"Dozer Operator","Dozer Operator","Hours ",{"$f":"(22*31)/4","v":170.5},8]
[6,"ADT","ADT (30T)","Hours ",{"$f":"21*31","v":651},2]
[7,"ADT Operator","ADT Operator","Hours ",{"$f":"(22*31)/4","v":170.5},8]
[8,"FEL","Front End Loader 12m3","Hours ",{"$f":"21*31","v":651},6]
[9,"FEL Operator","FEL Operator","Hours ",{"$f":"(22*31)/4","v":170.5},24]
[10,"Motor Grader","Motor Grader 14m3","Hours ",{"$f":"21*31","v":651},1]
[11,"Motor Grader Operator","MG Operator","Hours ",{"$f":"(22*31)/4","v":170.5},4]
[12,"Tipper Trucks","Tipper Trucks","Hours ",{"$f":"21*31","v":651},4]
[13,"Tipper Truck Operator","Tipper Truck Operator","Hours ",{"$f":"(22*31)/4","v":170.5},16]
[14,"Water Cart","Water Truck (Shift)","Hours ",{"$f":"21*31","v":651},4]
[15,"Water cart Operator","Water Truck Operator","Hours ",{"$f":"(22*31)/4","v":170.5},16]
[16,"Water Cart","Water Truck (Day)","Hours ",{"$f":"9*(31-4)","v":243},2]
[17,"Water cart Operator","Water Truck Operator","Hours ",{"$f":"E21","v":243},2]
[18,"Skid Steer Loader","Skid Steer Loader","Hours ",{"$f":"9*(31-4)","v":243},1]
[19,"Skid Steer Loader Operator","Skid Steer Loader Operator","Hours ",{"$f":"E23","v":243},2]
[]
["A2",null,"Seasonal CSY"]
["Item No.","Internal","Description ","Unit of measure","Quantity","Number of machines/ operators"]
[null,null,"NB: Machine rates must incl. Site Establishment and De-Establishment excl. Operator "]
[1,"Tipper Trucks","Tipper Truck","Hours ",{"$f":"21*31","v":651},4]
[2,"Tipper Truck Operator","Tipper Truck Operator","Hours ",{"$f":"(22*31)/4","v":170.5},16]
[3,"Dozer D8","Dozer D8","Hours ",300,1]
[4,"Dozer Operator","Dozer Operator","Hours ",{"$f":"E31","v":300},1]
[5,"ADT","ADT (30T)","Hours ",{"$f":"21*31","v":651},2]
[6,"ADT Operator","ADT Operator","Hours ",{"$f":"(22*31)/4","v":170.5},8]
[7,"FEL","Front End Loader 12m3","Hours ",{"$f":"21*31","v":651},2]
[8,"FEL Operator","FEL Operator","Hours ",{"$f":"(22*31)/4","v":170.5},8]
[9,"Motor Grader","Motor Grader 14m3","Hours ",300,1]
[10,"Motor Grader Operator","MG Operator","Hours ",{"$f":"E37","v":300},1]
[]
[]
[null,null,"TOTAL COSTS EXCL. VAT "]
[]
[null,null,"NB: "]
[null,null,"Normal operations are for a duration of 12 months "]
[null,null,"Seasonal operation are for a duration of 8 months "]
[null,null,"Operator rate should be inclusive of all the travel and sundry costs ( Medical, PPE, transport requirements etc. )"]
[null,null,"Ensure to apply Labour Relations Act: Bargaining Council for Civil Engineering Industry (BCCEI ) when bidding for operator rates."]
[null,null,"If rates are not within BCCEI rates they will be disqualified"]
[null,null,"A quote above any of the indicated base rates will lead to a disqualification. "]
[null,null,"Ensure that you quote for the BOQ in full; partial quote will lead to a disqualification. "]
[null,null,"Diesel will be a free issue"]

{"sheet":"Sheet3","index":1,"n_rows":0,"n_cols":0,"rows_kept":0}